fUST/lending_fUST_20240426
["ID","MTS","AMOUNT","RATE_DAILY","PERIOD"]
[323591200,1714099858596,-519.05780913,0.00055068,120]
[323591201,1714099858605,-505.45807769,0.00055068,120]
[323591202,1714099858614,-500.0,0.00055068,120]
[323591203,1714099858623,-500.0,0.00055068,120]
[323591205,1714099858632,-500.0,0.00055068,120]
[323591206,1714099858641,-500.0,0.00055068,120]
[323591207,1714099858650,-500.0,0.00055068,120]
[323591208,1714099858659,-500.0,0.00055068,120]
[323591210,1714099858668,-500.0,0.00055068,120]
[323591211,1714099858677,-500.0,0.00055068,120]
[323591213,1714099858686,-500.0,0.00055068,120]
[323591215,1714099858695,-1321.28,0.00055068,120]
[323591217,1714099858704,-500.0,0.00055068,120]
[323591219,1714099858713,-500.0,0.00055068,120]
[323591221,1714099858722,-500.0,0.00055068,120]
[323591223,1714099858731,-496.64026538,0.00055068,120]
[323591224,1714099858740,-500.0,0.00055068,120]
[323591227,1714099858750,-500.0,0.00055068,120]
[323591228,1714099858759,-500.49415366,0.00055068,120]
[323591230,1714099858769,-500.0,0.00055068,120]
[323591232,1714099858778,-709.88,0.00055068,120]
[323591234,1714099858787,-500.0,0.00055068,120]
[323591236,1714099858796,-500.0,0.00055068,120]
[323591238,1714099858805,-500.0,0.00055068,120]
[323591240,1714099858815,-1376.96,0.00055068,120]
[323591242,1714099858825,-500.0,0.00055068,120]
[323591245,1714099858835,-500.0,0.00055068,120]
[323591246,1714099858844,-1270.91,0.00055068,120]
[323591248,1714099858853,-3138.71,0.00055068,120]
[323591250,1714099858863,-500.0,0.00055068,120]
[323591252,1714099858872,-876.13,0.00055068,120]
[323591254,1714099858881,-500.0,0.00055068,120]
[323591256,1714099858890,-1259.67,0.00055068,120]
[323591258,1714099858899,-1612.5,0.00055068,120]
[323591260,1714099858908,-500.0,0.00055068,120]
[323591263,1714099858918,-500.0,0.00055068,120]
[323591265,1714099858927,-625.72,0.00055068,120]
[323591267,1714099858936,-500.0,0.00055068,120]
[323591269,1714099858945,-500.0,0.00055068,120]
[323591271,1714099858954,-500.0,0.00055068,120]
[323591273,1714099858964,-648.27,0.00055068,120]
[323591274,1714099858973,-500.0,0.00055068,120]
[323591276,1714099858982,-735.51,0.00055068,120]
[323591289,1714099859092,-500.0,0.00055068,120]
[323591291,1714099859102,-500.0,0.00055068,120]
[323591293,1714099859111,-500.0,0.00055068,120]
[323591295,1714099859120,-500.0,0.00055068,2]
[323591297,1714099859129,-1608.79,0.00055068,120]
[323591299,1714099859138,-4378.86,0.00055068,120]
[323591301,1714099859147,-653.21,0.00055068,120]
[323591303,1714099859157,-500.0,0.00055068,120]
[323591305,1714099859166,-500.0,0.00055068,120]
[323591307,1714099859175,-2521.0,0.0005507,35]
[323591309,1714099859184,-2521.0,0.0005508,35]
[323591311,1714099859193,-2521.0,0.0005509,35]
[323591313,1714099859202,-1000000.0,0.000552,30]
[323591315,1714099859211,-2607.7,0.00055342,120]
[323591317,1714099859221,-500.0,0.00055342,120]
[323591319,1714099859230,-500.0,0.00055342,120]
[323591321,1714099859240,-500.0,0.00055342,120]
[323591323,1714099859249,-577.5517464,0.00055342,120]
[323591325,1714099859258,-151.0,0.00055342,120]
[323591328,1714099859270,-511.14674902,0.00055342,120]
[323591330,1714099859279,-500.0,0.00055342,120]
[323591331,1714099859288,-500.0,0.00055342,120]
[323591333,1714099859297,-500.0,0.00055342,120]
[323591336,1714099859309,-560.30528035,0.00055342,120]
[323591337,1714099859319,-500.0,0.00055342,120]
[323591339,1714099859330,-500.0,0.00055342,120]
[323591341,1714099859340,-500.0,0.00055342,120]
[323591343,1714099859350,-500.0,0.00055342,120]
[323591346,1714099859359,-500.0,0.00055342,120]
[323591348,1714099859370,-500.81408306,0.00055342,120]
[323591350,1714099859379,-500.0,0.00055342,120]
[323591351,1714099859389,-500.0,0.00055342,120]
[323591354,1714099859398,-500.0,0.00055342,120]
[323591356,1714099859409,-503.23975423,0.00055342,120]
[323591358,1714099859420,-580.29085427,0.00055342,120]
[323591359,1714099859430,-500.0,0.00055342,120]
[323591362,1714099859440,-500.0,0.00055342,120]
[323591364,1714099859449,-500.0,0.00055342,120]
[323591365,1714099859458,-500.0,0.00055342,120]
[323591367,1714099859468,-500.0,0.00055342,120]
[323591369,1714099859477,-497.89619664,0.00055342,120]
[323591371,1714099859487,-500.0,0.00055342,120]
[323591373,1714099859496,-500.0,0.00055342,120]
[323591375,1714099859506,-500.0,0.00055342,120]
[323591378,1714099859516,-500.0,0.00055342,120]
[323591379,1714099859526,-976.68,0.00055342,120]
[323591382,1714099859536,-500.0,0.00055342,120]
[323591383,1714099859545,-500.0,0.00055342,120]
[323591386,1714099859555,-500.0,0.00055342,120]
[323591388,1714099859565,-500.0,0.00055342,120]
[323591390,1714099859574,-500.0,0.00055342,120]
[323591391,1714099859584,-500.0,0.00055342,120]
[323591394,1714099859594,-500.0,0.00055342,120]
[323591396,1714099859603,-500.0,0.00055342,120]
[323591397,1714099859612,-501.79886455,0.00055342,120]
[323591399,1714099859621,-500.0,0.00055342,120]
[323591401,1714099859631,-500.0,0.00055342,120]
[323591403,1714099859640,-500.0,0.00055342,120]
[323591405,1714099859649,-500.0,0.00055342,120]
[323591407,1714099859658,-500.0,0.00055342,120]
[323591410,1714099859668,-512.96,0.00055342,120]
[323591412,1714099859678,-500.0,0.00055342,120]
[323591414,1714099859687,-522.82174825,0.00055342,120]
[323591416,1714099859697,-500.0,0.00055342,120]
[323591418,1714099859706,-500.0,0.00055342,120]
[323591420,1714099859716,-500.0,0.00055342,120]
[323591422,1714099859724,-500.0,0.00055342,120]
[323591424,1714099859734,-500.0,0.00055342,120]
[323591426,1714099859743,-500.0,0.00055342,120]
[323591428,1714099859752,-439.27032487,0.00055342,120]
[323591430,1714099859760,-500.0,0.00055342,120]
[323591432,1714099859770,-323.92231843,0.00055342,120]
[323591433,1714099859779,-555.11662491,0.00055342,120]
[323591436,1714099859789,-500.0,0.00055342,60]
[323591438,1714099859798,-500.81350591,0.00055342,120]
[323591440,1714099859807,-500.0,0.00055342,120]
[323591442,1714099859816,-500.0,0.00055342,120]
[323591444,1714099859831,-1900.81,0.00055342,120]
[323591446,1714099859839,-500.0,0.00055342,120]
[323591448,1714099859848,-1543.65,0.00055342,120]
[323591450,1714099859857,-500.0,0.00055342,120]
[323591452,1714099859866,-500.0,0.00055342,120]
[323591454,1714099859875,-500.0,0.00055342,120]
[323591456,1714099859884,-500.0,0.00055342,120]
[323591457,1714099859893,-500.0,0.00055342,120]
[323591459,1714099859902,-423.50622968,0.00055342,120]
[323591461,1714099859911,-500.0,0.00055342,120]
[323591464,1714099859921,-500.0,0.00055342,120]
[323591465,1714099859930,-500.0,0.00055342,120]
[323591467,1714099859939,-501.70259554,0.00055342,120]
[323591469,1714099859948,-516.59,0.00055342,2]
[323591471,1714099859957,-501.79765167,0.00055342,120]
[323591473,1714099859967,-500.0,0.00055342,120]
[323591475,1714099859976,-500.0,0.00055342,120]
[323591477,1714099859985,-500.0,0.00055342,120]
[323591479,1714099859994,-500.0,0.00055342,120]
[323591481,1714099860003,-500.0,0.00055342,120]
[323591483,1714099860012,-641.72,0.00055342,120]
[323591485,1714099860021,-500.0,0.00055342,120]
[323591487,1714099860030,-500.0,0.00055342,120]
[323591490,1714099860040,-501.3647645,0.00055342,120]
[323591491,1714099860049,-500.0,0.00055342,120]
[323591493,1714099860058,-500.0,0.00055342,120]
[323591495,1714099860067,-1597.62,0.00055342,120]
[323591497,1714099860078,-500.0,0.00055342,120]
[323591499,1714099860087,-500.0,0.00055342,120]
[323591502,1714099860097,-595.18,0.00055342,120]
[323591503,1714099860106,-500.0,0.00055342,120]
[323591505,1714099860115,-500.0,0.00055342,120]
[323591507,1714099860124,-500.0,0.00055342,120]
[323591509,1714099860133,-500.0,0.00055342,120]
[323591511,1714099860142,-500.0,0.00055342,120]
[323591513,1714099860150,-537.02104969,0.00055342,120]
[323591515,1714099860159,-500.0,0.00055342,120]
[323591517,1714099860168,-500.0,0.00055342,120]
[323591519,1714099860177,-1727.11,0.00055342,120]
[323591521,1714099860186,-500.0,0.00055342,120]
[323591523,1714099860195,-500.0,0.00055342,120]
[323591525,1714099860204,-500.0,0.00055342,120]
[323591527,1714099860213,-500.0,0.00055342,120]
[323591529,1714099860223,-554.44352237,0.00055342,120]
[323591531,1714099860232,-500.0,0.00055342,120]
[323591533,1714099860241,-500.0,0.00055342,120]
[323591535,1714099860250,-500.0,0.00055342,120]
[323591537,1714099860259,-1085.28,0.00055342,120]
[323591539,1714099860268,-500.0,0.00055342,120]
[323591541,1714099860278,-500.93969674,0.00055342,120]
[323591543,1714099860287,-769.34,0.00055342,120]
[323591545,1714099860296,-500.0,0.00055342,120]
[323591547,1714099860305,-500.0,0.00055342,7]
[323591549,1714099860314,-500.0,0.00055342,120]
[323591551,1714099860323,-500.0,0.00055342,120]
[323591553,1714099860334,-500.0,0.00055342,120]
[323591555,1714099860343,-500.0,0.00055342,120]
[323591557,1714099860353,-500.0,0.00055342,120]
[323591559,1714099860362,-500.0,0.00055342,120]
[323591561,1714099860371,-500.0,0.00055342,120]
[323591563,1714099860380,-526.2291859,0.00055342,120]
[323591565,1714099860390,-393.6015372,0.00055342,120]
[323591567,1714099860399,-500.0,0.00055342,120]
[323591569,1714099860410,-500.0,0.00055342,120]
[323591572,1714099860421,-500.0,0.00055342,120]
[323591573,1714099860431,-967.69,0.00055342,120]
[323591575,1714099860440,-500.0,0.00055342,120]
[323591577,1714099860450,-500.0,0.00055342,120]
[323591579,1714099860459,-506.16724627,0.00055342,120]
[323591581,1714099860469,-500.0,0.00055342,120]
[323591583,1714099860478,-170.29744252,0.00055342,120]
[323591585,1714099860489,-500.0,0.00055342,120]
[323591587,1714099860498,-500.0,0.00055342,120]
[323591589,1714099860507,-500.0,0.00055342,120]
[323591591,1714099860516,-500.0,0.00055342,120]
[323591593,1714099860525,-500.85070571,0.00055342,120]
[323591595,1714099860534,-500.0,0.00055342,120]
[323591597,1714099860543,-500.0,0.00055342,120]
[323591599,1714099860552,-500.0,0.00055342,120]
[323591601,1714099860561,-826.47,0.00055342,120]
[323591603,1714099860570,-500.73415858,0.00055342,120]
[323591605,1714099860580,-500.0,0.00055342,120]
[323591607,1714099860589,-500.0,0.00055342,120]
[323591609,1714099860598,-500.0,0.00055342,120]
[323591611,1714099860607,-500.0,0.00055342,120]
[323591613,1714099860617,-500.0,0.00055342,120]
[323591615,1714099860626,-500.0,0.00055342,120]
[323591617,1714099860635,-500.0,0.00055342,120]
[323591619,1714099860644,-501.74372469,0.00055342,120]
[323591621,1714099860654,-500.0,0.00055342,120]
[323591623,1714099860663,-500.0,0.00055342,120]
[323591625,1714099860672,-500.0,0.00055342,120]
[323591627,1714099860681,-500.0,0.00055342,120]
[323591629,1714099860690,-500.0,0.00055342,120]
[323591631,1714099860700,-1913.27,0.00055342,120]
[323591633,1714099860709,-500.0,0.00055342,120]
[323591635,1714099860718,-500.0,0.00055342,120]
[323591637,1714099860727,-1459.11,0.00055342,120]
[323591639,1714099860736,-647.14392687,0.00055342,120]
[323591641,1714099860746,-500.0,0.00055342,120]
[323591643,1714099860755,-1614.85,0.00055342,120]
[323591645,1714099860765,-500.0,0.00055342,120]
[323591647,1714099860774,-1759.91,0.00055342,120]
[323591649,1714099860783,-500.0,0.00055342,120]
[323591651,1714099860792,-500.0,0.00055342,120]
[323591653,1714099860802,-1364.53,0.00055342,120]
[323591655,1714099860811,-500.0,0.00055342,120]
[323591657,1714099860820,-158.89599308,0.00055342,120]
[323591659,1714099860831,-319.82127634,0.00055342,120]
[323591661,1714099860843,-500.0,0.00055342,120]
[323591663,1714099860852,-500.0,0.00055342,120]
[323591665,1714099860861,-500.0,0.00055342,120]
[323591667,1714099860870,-500.0,0.00055342,120]
[323591669,1714099860879,-500.0,0.00055342,120]
[323591670,1714099860888,-500.0,0.00055342,120]
[323591672,1714099860897,-500.0,0.00055342,120]
[323591674,1714099860906,-500.0,0.00055342,3]
[323591676,1714099860916,-1000.0,0.00055342,120]
[323591679,1714099860926,-500.0,0.00055342,120]
[323591680,1714099860935,-500.0,0.00055342,120]
[323591682,1714099860944,-500.0,0.00055342,120]
[323591684,1714099860954,-882.66,0.00055342,120]
[323591686,1714099860963,-8110.34,0.00055342,120]
[323591688,1714099860972,-500.0,0.00055342,120]
[323591690,1714099860982,-500.0,0.00055342,120]
[323591693,1714099860994,-500.0,0.00055342,120]
[323591694,1714099861003,-500.0,0.00055342,120]
[323591696,1714099861012,-500.0,0.00055342,120]
[323591698,1714099861022,-500.80059606,0.00055342,120]
[323591700,1714099861031,-2998.7,0.00055342,120]
[323591702,1714099861040,-580.30683966,0.00055342,120]
[323591704,1714099861049,-1243.4,0.00055342,120]
[323591706,1714099861059,-610.80165985,0.00055342,120]
[323591708,1714099861068,-500.0,0.00055342,120]
[323591710,1714099861078,-568.63,0.00055342,120]
[323591712,1714099861087,-902.12,0.00055342,120]
[323591714,1714099861097,-500.0,0.00055342,120]
[323591716,1714099861106,-500.0,0.00055342,120]
[323591718,1714099861115,-500.0,0.00055342,120]
[323591720,1714099861124,-500.0,0.00055342,120]
[323591722,1714099861133,-500.0,0.00055342,120]
[323591724,1714099861142,-500.0,0.00055342,120]
[323591726,1714099861151,-1645.56,0.00055342,120]
[323591728,1714099861160,-500.0,0.00055342,120]
[323591730,1714099861170,-10108.47,0.00055342,120]
[323591732,1714099861179,-500.0,0.00055342,120]
[323591734,1714099861188,-500.0,0.00055342,120]
[323591736,1714099861197,-500.0,0.00055342,120]
[323591738,1714099861206,-500.0,0.00055342,120]
[323591740,1714099861215,-500.0,0.00055342,120]
[323591742,1714099861224,-500.0,0.00055342,120]
[323591744,1714099861233,-500.0,0.00055342,120]
[323591746,1714099861241,-867.82,0.00055342,120]
[323591758,1714099861344,-500.0,0.00055342,120]
[323591760,1714099861353,-1106.3,0.00055342,120]
[323591762,1714099861363,-500.0,0.00055342,120]
[323591764,1714099861372,-501.03330269,0.00055342,120]
[323591766,1714099861381,-500.0,0.00055342,120]
[323591768,1714099861390,-500.0,0.00055342,120]
[323591770,1714099861400,-500.0,0.00055342,120]
[323591772,1714099861409,-500.0,0.00055342,120]
[323591774,1714099861423,-500.0,0.00055342,120]
[323591776,1714099861432,-573.43996447,0.00055342,120]
[323591777,1714099861440,-961.27,0.00055342,120]
[323591778,1714099861449,-500.0,0.00055342,120]
[323591779,1714099861459,-500.0,0.00055342,120]
[323591780,1714099861468,-500.0,0.00055342,120]
[323591781,1714099861477,-500.0,0.00055342,120]
[323591782,1714099861487,-500.0,0.00055342,120]
[323591783,1714099861497,-500.0,0.00055342,120]
[323591784,1714099861506,-500.0,0.00055342,120]
[323591785,1714099861516,-500.0,0.00055342,120]
[323591786,1714099861526,-500.0,0.00055342,120]
[323591787,1714099861536,-500.0,0.00055342,120]
[323591788,1714099861545,-14214.71,0.00055342,120]
[323591789,1714099861555,-588.6,0.00055342,120]
[323591790,1714099861564,-500.0,0.00055342,120]
[323591791,1714099861574,-386.83529193,0.00055342,120]
[323591792,1714099861584,-500.0,0.00055342,120]
[323591793,1714099861593,-2011.18,0.00055342,120]
[323591794,1714099861603,-556.75357654,0.00055342,120]
[323591795,1714099861612,-500.0,0.00055342,120]
[323591796,1714099861621,-1690.05,0.00055342,120]
[323591797,1714099861630,-2570.54,0.00055342,120]
[323591798,1714099861640,-3418.88,0.00055342,21]
[323591799,1714099861649,-500.0,0.00055342,120]
[323591800,1714099861659,-500.0,0.00055342,120]
[323591802,1714099861668,-500.0,0.00055342,120]
[323591804,1714099861677,-500.0,0.00055342,7]
[323591806,1714099861686,-500.0,0.00055342,120]
[323591808,1714099861695,-1241.59,0.00055342,120]
[323591810,1714099861705,-541.93,0.00055342,120]
[323591812,1714099861714,-500.0,0.00055342,120]
[323591814,1714099861723,-452.04250298,0.00055342,120]
[323591816,1714099861732,-500.0,0.00055342,120]
[323591817,1714099861742,-620.31,0.00055342,120]
[323591820,1714099861752,-4286.96,0.00055342,120]
[323591821,1714099861761,-500.0,0.00055342,120]
[323591823,1714099861771,-500.0,0.00055342,120]
[323591826,1714099861781,-500.0,0.00055342,120]
[323591828,1714099861791,-287.53076776,0.00055342,120]
[323591830,1714099861800,-632.57,0.00055342,120]
[323591832,1714099861810,-2408.71,0.00055342,120]
[323591833,1714099861819,-500.0,0.00055342,120]
[323591835,1714099861830,-512.94341918,0.00055342,120]
[323591837,1714099861840,-1365.71,0.00055342,120]
[323591839,1714099861850,-500.0,0.00055342,120]
[323591841,1714099861859,-187.42594818,0.00055342,20]
[323591843,1714099861868,-500.0,0.00055342,120]
[323591845,1714099861878,-500.0,0.00055342,120]
[323591847,1714099861887,-631.83,0.00055342,120]
[323591849,1714099861897,-500.0,0.00055342,120]
[323591851,1714099861907,-500.0,0.00055342,120]
[323591853,1714099861916,-500.0,0.00055342,120]
[323591855,1714099861925,-500.0,0.00055342,120]
[323591857,1714099861934,-500.0,0.00055342,120]
[323591859,1714099861943,-500.0,0.00055342,120]
[323591861,1714099861953,-502.32921597,0.00055342,120]
[323591863,1714099861962,-500.0,0.00055342,120]
[323591865,1714099861971,-500.0,0.00055342,120]
[323591867,1714099861981,-500.0,0.00055342,120]
[323591869,1714099861990,-500.0,0.00055342,60]
[323591871,1714099861999,-500.0,0.00055342,120]
[323591873,1714099862008,-597.63,0.00055342,120]
[323591875,1714099862017,-500.0,0.00055342,120]
[323591877,1714099862027,-3900.41,0.00055342,120]
[323591879,1714099862036,-500.0,0.00055342,120]
[323591881,1714099862046,-541.35,0.00055342,120]
[323591883,1714099862056,-500.0,0.00055342,120]
[323591885,1714099862066,-500.0,0.00055342,120]
[323591887,1714099862076,-500.0,0.00055342,120]
[323591889,1714099862086,-500.0,0.00055342,120]
[323591891,1714099862095,-500.0,0.00055342,120]
[323591893,1714099862105,-500.0,0.00055342,120]
[323591895,1714099862115,-500.0,0.00055342,120]
[323591897,1714099862124,-500.0,0.00055342,120]
[323591899,1714099862134,-1321.28,0.00055342,120]
[323591901,1714099862144,-500.0,0.00055342,120]
[323591903,1714099862154,-500.0,0.00055342,120]
[323591905,1714099862164,-500.0,0.00055342,120]
[323591907,1714099862173,-500.0,0.00055342,120]
[323591909,1714099862182,-500.0,0.00055342,120]
[323591911,1714099862192,-228.70706753,0.00055342,120]
[323591913,1714099862202,-709.88,0.00055342,120]
[323591915,1714099862211,-500.0,0.00055342,120]
[323591917,1714099862220,-500.0,0.00055342,120]
[323591919,1714099862229,-500.0,0.00055342,120]
[323591921,1714099862239,-1376.96,0.00055342,120]
[323591923,1714099862249,-500.0,0.00055342,120]
[323591925,1714099862258,-500.0,0.00055342,120]
[323591927,1714099862267,-1270.91,0.00055342,120]
[323591929,1714099862276,-3138.71,0.00055342,120]
[323591931,1714099862285,-623.24212262,0.00055342,120]
[323591933,1714099862294,-876.13,0.00055342,120]
[323591935,1714099862303,-500.0,0.00055342,120]
[323591937,1714099862313,-1259.67,0.00055342,120]
[323591939,1714099862322,-1612.5,0.00055342,120]
[323591941,1714099862332,-500.0,0.00055342,120]
[323591943,1714099862341,-500.0,0.00055342,120]
[323591945,1714099862351,-625.72,0.00055342,120]
[323591947,1714099862360,-500.0,0.00055342,120]
[323591949,1714099862371,-500.0,0.00055342,120]
[323591951,1714099862380,-500.0,0.00055342,120]
[323591953,1714099862389,-648.27,0.00055342,120]
[323591955,1714099862398,-500.0,0.00055342,120]
[323591957,1714099862408,-735.51,0.00055342,120]
[323591959,1714099862423,-500.0,0.00055342,120]
[323591961,1714099862433,-500.0,0.00055342,120]
[323591963,1714099862442,-500.0,0.00055342,120]
[323591965,1714099862452,-500.0,0.00055342,2]
[323591967,1714099862462,-1608.79,0.00055342,120]
[323591969,1714099862472,-4378.86,0.00055342,120]
[323591971,1714099862484,-653.21,0.00055342,120]
[323591972,1714099862494,-500.0,0.00055342,120]
[323591974,1714099862506,-153.3680715,0.0005537,30]
[323591976,1714099862515,-221.3131329,0.0005537,60]
[323591978,1714099862526,-500000.0,0.000555,120]
[323591981,1714099862536,-2607.7,0.00055616,120]
[323591983,1714099862546,-500.0,0.00055616,120]
[323591984,1714099862555,-500.0,0.00055616,120]
[323591986,1714099862565,-500.0,0.00055616,120]
[323591988,1714099862576,-195.25515677,0.00055616,120]
[323591990,1714099862587,-500.0,0.00055616,120]
[323591992,1714099862597,-500.0,0.00055616,120]
[323591994,1714099862607,-500.0,0.00055616,120]
[323591997,1714099862617,-500.0,0.00055616,120]
[323591998,1714099862626,-500.0,0.00055616,120]
[323592000,1714099862636,-500.0,0.00055616,120]
[323592002,1714099862646,-500.0,0.00055616,120]
[323592004,1714099862656,-500.0,0.00055616,120]
[323592006,1714099862665,-500.0,0.00055616,120]
[323592008,1714099862676,-500.0,0.00055616,120]
[323592010,1714099862686,-500.0,0.00055616,120]
[323592012,1714099862697,-500.0,0.00055616,120]
[323592014,1714099862708,-500.0,0.00055616,120]
[323592016,1714099862718,-500.82678921,0.00055616,120]
[323592018,1714099862729,-500.0,0.00055616,120]
[323592020,1714099862739,-500.0,0.00055616,120]
[323592022,1714099862750,-500.0,0.00055616,120]
[323592024,1714099862760,-501.3979097,0.00055616,120]
[323592026,1714099862770,-500.0,0.00055616,120]
[323592028,1714099862783,-500.0,0.00055616,120]
[323592030,1714099862793,-976.68,0.00055616,120]
[323592032,1714099862803,-500.0,0.00055616,120]
[323592035,1714099862814,-500.0,0.00055616,120]
[323592037,1714099862823,-500.0,0.00055616,120]
[323592038,1714099862833,-500.76828423,0.00055616,120]
[323592040,1714099862843,-500.0,0.00055616,120]
[323592042,1714099862852,-500.0,0.00055616,120]
[323592044,1714099862862,-500.0,0.00055616,120]
[323592046,1714099862871,-500.0,0.00055616,120]
[323592048,1714099862880,-500.0,0.00055616,120]
[323592050,1714099862891,-500.6609804,0.00055616,120]
[323592052,1714099862901,-500.0,0.00055616,120]
[323592054,1714099862911,-500.0,0.00055616,120]
[323592056,1714099862921,-504.50877379,0.00055616,120]
[323592058,1714099862931,-512.96,0.00055616,120]
[323592060,1714099862940,-501.56765189,0.00055616,120]
[323592062,1714099862950,-500.0,0.00055616,120]
[323592064,1714099862959,-500.0,0.00055616,120]
[323592066,1714099862969,-500.0,0.00055616,120]
[323592068,1714099862978,-501.76810961,0.00055616,120]
[323592070,1714099862988,-500.0,0.00055616,120]
[323592072,1714099862998,-500.0,0.00055616,120]
[323592074,1714099863007,-501.36478332,0.00055616,120]
[323592076,1714099863018,-500.0,0.00055616,60]
[323592078,1714099863027,-500.0,0.00055616,120]
[323592080,1714099863037,-500.0,0.00055616,120]
[323592082,1714099863046,-1900.81,0.00055616,120]
[323592084,1714099863056,-500.0,0.00055616,120]
[323592086,1714099863065,-1543.65,0.00055616,120]
[323592088,1714099863074,-500.0,0.00055616,120]
[323592090,1714099863087,-500.0,0.00055616,120]
[323592092,1714099863098,-358.16569609,0.00055616,120]
[323592094,1714099863108,-500.0,0.00055616,120]
[323592096,1714099863118,-500.0,0.00055616,120]
[323592098,1714099863128,-500.0,0.00055616,120]
[323592099,1714099863140,-500.0,0.00055616,120]
[323592101,1714099863151,-500.0,0.00055616,120]
[323592103,1714099863162,-516.59,0.00055616,2]
[323592105,1714099863173,-500.0,0.00055616,120]
[323592108,1714099863186,-500.0,0.00055616,120]
[323592109,1714099863196,-500.0,0.00055616,120]
[323592111,1714099863206,-500.0,0.00055616,120]
[323592113,1714099863218,-501.60769789,0.00055616,120]
[323592115,1714099863228,-641.72,0.00055616,120]
[323592118,1714099863238,-332.60309323,0.00055616,120]
[323592119,1714099863248,-500.93095687,0.00055616,120]
[323592121,1714099863258,-500.0,0.00055616,120]
[323592123,1714099863268,-500.0,0.00055616,120]
[323592125,1714099863278,-1597.62,0.00055616,120]
[323592127,1714099863288,-500.0,0.00055616,120]
[323592130,1714099863299,-500.0,0.00055616,120]
[323592132,1714099863311,-595.18,0.00055616,120]
[323592133,1714099863321,-500.0,0.00055616,120]
[323592136,1714099863332,-500.0,0.00055616,120]
[323592137,1714099863341,-500.0,0.00055616,120]
[323592139,1714099863352,-500.0,0.00055616,120]
[323592141,1714099863363,-500.71934863,0.00055616,120]
[323592143,1714099863374,-500.0,0.00055616,120]
[323592145,1714099863382,-500.0,0.00055616,120]
[323592147,1714099863393,-1727.11,0.00055616,120]
[323592149,1714099863402,-500.0,0.00055616,120]
[323592151,1714099863414,-500.0,0.00055616,120]
[323592153,1714099863426,-501.89213492,0.00055616,120]
[323592165,1714099863524,-500.0,0.00055616,120]
[323592167,1714099863533,-500.0,0.00055616,120]
[323592169,1714099863543,-500.0,0.00055616,120]
[323592171,1714099863552,-244.87443549,0.00055616,120]
[323592173,1714099863560,-1085.28,0.00055616,120]
[323592175,1714099863569,-500.0,0.00055616,120]
[323592176,1714099863579,-769.34,0.00055616,120]
[323592178,1714099863589,-500.0,0.00055616,120]
[323592180,1714099863598,-500.0,0.00055616,7]
[323592183,1714099863609,-504.71460083,0.00055616,120]
[323592185,1714099863620,-500.0,0.00055616,120]
[323592186,1714099863629,-500.93720415,0.00055616,120]
[323592188,1714099863639,-579.7782272,0.00055616,120]
[323592190,1714099863648,-501.22477654,0.00055616,120]
[323592192,1714099863656,-500.0,0.00055616,120]